[Event "FIDE-Online-Steinitz-Memorial-Women"]
[White "Lei, Tingjie"]
[Black "Lagno, Kateryna"]
[Site "Internet"]
[Round "19"]
[Annotator "ChessBase"]
[Result "0-1"]
[Date "2020.05.17"]
[WhiteElo "2530"]
[BlackElo "2608"]
[PlyCount "304"]
[TimeControl "180+2"]

1. e4 e5 2. Nf3 {[%emt 0:0:0]} Nc6 {[%emt 0:0:0]} 3. Bb5 {[%emt 0:0:0]} Bc5 {[%emt 0:0:0]} 4. 0-0 {[%emt 0:0:0]} Nd4 {[%emt 0:0:0]} 5. Bc4 {[%emt 0:0:0]
} d6 {[%emt 0:0:0]} 6. c3 {[%emt 0:0:0]} Nxf3+ {[%emt 0:0:0]} 7. Qxf3 {[%emt 0:0:0]} Nf6 {[%emt 0:0:0]} 8. d3 {[%emt 0:0:0]} 0-0 {[%emt 0:0:0]
} 9. h3 {[%emt 0:0:0]} c6 {[%emt 0:0:0]} 10. Bb3 {[%emt 0:0:0]} Be6 {[%emt 0:0:0]} 11. Bc2 {[%emt 0:0:0]} h6 {[%emt 0:0:0]} 12. Re1 {[%emt 0:0:0]} Nh7 {[%emt 0:0:0]} 13. Qg3 {[%emt 0:0:0]} f5 {[%emt 0:0:0]} 14. exf5 {[%emt 0:0:0]} Bxf5 {[%emt 0:0:0]} 15. Be3 {[%emt 0:0:0]} Bxe3 {[%emt 0:0:6]} 16. Qxe3 {[%emt 0:0:0]} Qf6 {[%emt 0:0:6]} 17. Nd2 {[%emt 0:0:0]
} Ng5 {[%emt 0:0:7]} 18. Rad1 {[%emt 0:0:0]} c5 {[%emt 0:0:0]} 19. Nf1 {[%emt 0:0:0]} Rae8 {[%emt 0:0:5]} 20. Ng3 {[%emt 0:0:0]} Bd7 {[%emt 0:0:6]} 21. Ne4 {[%emt 0:0:0]} Qe7 {[%emt 0:0:11]} 22. Bb3+ {[%emt 0:0:0]
} Kh8 {[%emt 0:0:5]} 23. Nxg5 {[%emt 0:0:0]} Qxg5 {[%emt 0:0:0]} 24. Qxg5 {[%emt 0:0:2]} hxg5 {[%emt 0:0:2]} 25. Re3 {[%emt 0:0:4]
} Kh7 {[%emt 0:0:7]} 26. Rde1 {[%emt 0:0:3]} Bc6 {[%emt 0:0:4]} 27. Bc2 {[%emt 0:0:7]
} Kh6 {[%emt 0:0:3]} 28. f3 {[%emt 0:0:4]} b5 {[%emt 0:0:6]
} 29. Kf2 {[%emt 0:0:4]} a5 {[%emt 0:0:3]} 30. Kg3 {[%emt 0:0:3]} b4 {[%emt 0:0:5]
} 31. c4 {[%emt 0:0:4]} a4 {[%emt 0:0:3]} 32. Bd1 {[%emt 0:0:0]} Rf4 {[%emt 0:0:6]} 33. Be2 {[%emt 0:0:5]} Ref8 {[%emt 0:0:3]} 34. Bf1 {[%emt 0:0:3]} Rd4 {[%emt 0:0:3]} 35. Be2 {[%emt 0:0:4]} Rdf4 {[%emt 0:0:4]
} 36. Rh1 {[%emt 0:0:3]} Kg6 {[%emt 0:0:6]} 37. Kf2 {[%emt 0:0:0]} Rh8 {[%emt 0:0:5]} 38. Rg1 {[%emt 0:0:5]} Rhf8 {[%emt 0:0:3]} 39. Ke1 {[%emt 0:0:3]} Rh8 {[%emt 0:0:4]} 40. Kd2 {[%emt 0:0:3]} Kf7 {[%emt 0:0:5]
} 41. Bd1 {[%emt 0:0:4]} Rf6 {[%emt 0:0:11]} 42. Rge1 {[%emt 0:0:3]
} Ke7 {[%emt 0:0:4]} 43. Bc2 {[%emt 0:0:4]} Kd8 {[%emt 0:0:0]} 44. Kc1 {[%emt 0:0:3]} Kc7 {[%emt 0:0:3]} 45. Kb1 {[%emt 0:0:3]} Kb6 {[%emt 0:0:5]} 46. Bd1 {[%emt 0:0:3]} Kc7 {[%emt 0:0:3]} 47. Kc1 {[%emt 0:0:3]
} Kb6 {[%emt 0:0:3]} 48. Kd2 {[%emt 0:0:3]} Kc7 {[%emt 0:0:0]} 49. R3e2 {[%emt 0:0:4]} Rh4 {[%emt 0:0:3]} 50. Re3 {[%emt 0:0:3]} Rh8 {[%emt 0:0:4]} 51. Rh1 {[%emt 0:0:4]} Rh4 {[%emt 0:0:3]} 52. Rg1 {[%emt 0:0:3]
} Rh8 {[%emt 0:0:3]} 53. Be2 {[%emt 0:0:3]} Rh4 {[%emt 0:0:0]} 54. Bd1 {[%emt 0:0:3]} Rh8 {[%emt 0:0:3]} 55. Bc2 {[%emt 0:0:5]} Rh4 {[%emt 0:0:2]} 56. Ree1 {[%emt 0:0:4]} Rh8 {[%emt 0:0:3]} 57. a3 {[%emt 0:0:5]
} b3 {[%emt 0:0:4]} 58. Bd1 {[%emt 0:0:2]} Rh4 {[%emt 0:0:0]} 59. Kc3 {[%emt 0:0:4]} Rh8 {[%emt 0:0:3]} 60. Be2 {[%emt 0:0:5]} Rh4 {[%emt 0:0:3]} 61. Rh1 {[%emt 0:0:3]} Rh8 {[%emt 0:0:3]} 62. Rh2 {[%emt 0:0:3]
} Rh4 {[%emt 0:0:3]} 63. Reh1 {[%emt 0:0:3]} Rh8 {[%emt 0:0:0]} 64. Rd1 {[%emt 0:0:3]} Rh4 {[%emt 0:0:3]} 65. Rhh1 {[%emt 0:0:3]} Rh8 {[%emt 0:0:3]} 66. Rdf1 {[%emt 0:0:3]} Rh4 {[%emt 0:0:3]} 67. Rf2 {[%emt 0:0:3]
} Rh8 {[%emt 0:0:3]} 68. Rg1 {[%emt 0:0:4]} Rh4 {[%emt 0:0:0]} 69. Rgf1 {[%emt 0:0:4]} Rh8 {[%emt 0:0:2]} 70. Rd1 {[%emt 0:0:3]} Rh4 {[%emt 0:0:4]} 71. Bf1 {[%emt 0:0:4]} Rh8 {[%emt 0:0:3]} 72. Re1 {[%emt 0:0:2]
} Rh4 {[%emt 0:0:3]} 73. Re3 {[%emt 0:0:4]} Rh8 {[%emt 0:0:0]} 74. g3 {[%emt 0:0:4]} Rhf8 {[%emt 0:0:3]} 75. Bg2 {[%emt 0:0:3]} Bb7 {[%emt 0:0:3]} 76. Kd2 {[%emt 0:0:4]} Bc6 {[%emt 0:0:3]} 77. Rf1 {[%emt 0:0:3]
} Bb7 {[%emt 0:0:2]} 78. Ke2 {[%emt 0:0:3]} Bc6 {[%emt 0:0:0]} 79. Kf2 {[%emt 0:0:3]} Bb7 {[%emt 0:0:2]} 80. Kg1 {[%emt 0:0:3]} Bc6 {[%emt 0:0:2]} 81. Kh2 {[%emt 0:0:4]} Bb7 {[%emt 0:0:3]} 82. Rf2 {[%emt 0:0:5]
} Bc6 {[%emt 0:0:3]} 83. Bh1 {[%emt 0:0:3]} Bb7 {[%emt 0:0:0]} 84. Kg2 {[%emt 0:0:3]} Bc6 {[%emt 0:0:3]} 85. Kg1 {[%emt 0:0:2]} Bb7 {[%emt 0:0:2]} 86. Kf1 {[%emt 0:0:3]} Bc6 {[%emt 0:0:3]} 87. Ke1 {[%emt 0:0:3]
} Bb7 {[%emt 0:0:3]} 88. Bg2 {[%emt 0:0:3]} Bc6 {[%emt 0:0:0]} 89. Ke2 {[%emt 0:0:3]} Bb7 {[%emt 0:0:2]} 90. Kd2 {[%emt 0:0:3]} Bc6 {[%emt 0:0:3]} 91. Ke2 {[%emt 0:0:3]} Bb7 {[%emt 0:0:2]} 92. Rf1 {[%emt 0:0:2]
} Bc6 {[%emt 0:0:3]} 93. Bh1 {[%emt 0:0:4]} Bb7 {[%emt 0:0:0]} 94. Kf2 {[%emt 0:0:3]} Bc6 {[%emt 0:0:3]} 95. Kg2 {[%emt 0:0:2]} Bb7 {[%emt 0:0:2]} 96. Kh2 {[%emt 0:0:3]} Bc6 {[%emt 0:0:3]} 97. g4 {[%emt 0:0:0]} Bb7 {[%emt 0:0:3]} 98. Kg3 {[%emt 0:0:2]} Rf4 {[%emt 0:0:3]} 99. Bg2 {[%emt 0:0:3]} Rh8 {[%emt 0:0:5]} 100. Rh1 {[%emt 0:0:5]} Rh4 {[%emt 0:0:3]
} 101. Ree1 {[%emt 0:0:3]} Bc6 {[%emt 0:0:2]} 102. Re3 {[%emt 0:0:4]
} Bb7 {[%emt 0:0:3]} 103. Rhe1 {[%emt 0:0:3]} Bc6 {[%emt 0:0:0]} 104. Bf1 {[%emt 0:0:4]} Bb7 {[%emt 0:0:2]} 105. Be2 {[%emt 0:0:3]
} Bc6 {[%emt 0:0:3]} 106. Bd1 {[%emt 0:0:3]} Bb7 {[%emt 0:0:2]} 107. Rg1 {[%emt 0:0:4]} Bc6 {[%emt 0:0:3]} 108. Ree1 {[%emt 0:0:3]} Bb7 {[%emt 0:0:0]} 109. Be2 {[%emt 0:0:3]} Bc6 {[%emt 0:0:3]} 110. Ref1 {[%emt 0:0:0]} Bb7 {[%emt 0:0:2]} 111. Kh2 {[%emt 0:0:3]} Bc6 {[%emt 0:0:3]} 112. Kg3 {[%emt 0:0:3]} Bb7 {[%emt 0:0:3]} 113. Rh1 {[%emt 0:0:3]} Bc6 {[%emt 0:0:2]
} 114. Kf2 {[%emt 0:0:2]} Bb7 {[%emt 0:0:3]} 115. Ke3 {[%emt 0:0:3]
} Bc6 {[%emt 0:0:2]} 116. Kd2 {[%emt 0:0:3]} Bb7 {[%emt 0:0:0]} 117. Kc3 {[%emt 0:0:2]} Bc6 {[%emt 0:0:3]} 118. Bd1 {[%emt 0:0:3]} Bb7 {[%emt 0:0:2]} 119. Rf2 {[%emt 0:0:3]} Bc6 {[%emt 0:0:3]} 120. Rhh2 {[%emt 0:0:3]
} Bb7 {[%emt 0:0:2]} 121. Rh1 {[%emt 0:0:3]} Bc6 {[%emt 0:0:0]} 122. Kd2 {[%emt 0:0:3]} Bb7 {[%emt 0:0:2]} 123. Rff1 {[%emt 0:0:4]} Bc6 {[%emt 0:0:3]} 124. Ke3 {[%emt 0:0:3]} Bb7 {[%emt 0:0:2]} 125. Kf2 {[%emt 0:0:3]
} Bc6 {[%emt 0:0:3]} 126. Be2 {[%emt 0:0:3]} Bb7 {[%emt 0:0:0]} 127. Kg3 {[%emt 0:0:3]} Bc6 {[%emt 0:0:3]} 128. Rd1 {[%emt 0:0:5]} Bb7 {[%emt 0:0:2]} 129. d4 {[%emt 0:0:5]} Rxd4 {[%emt 0:0:4]} 130. Rxd4 {[%emt 0:0:4]
} cxd4 {[%emt 0:0:2]} 131. Bd3 {[%emt 0:0:4]} Kb6 {[%emt 0:0:0]} 132. Re1 {[%emt 0:0:4]} Kc5 {[%emt 0:0:3]} 133. Rc1 {[%emt 0:0:4]
} Rh8 {[%emt 0:0:2]} 134. Be2 {[%emt 0:0:4]} Rf8 {[%emt 0:0:3]} 135. Re1 {[%emt 0:0:6]} d3 {[%emt 0:0:4]} 136. Bd1 {[%emt 0:0:3]} Kxc4 {[%emt 0:0:0]} 137. Re3 {[%emt 0:0:6]} Kd4 {[%emt 0:0:3]} 138. Re1 {[%emt 0:0:4]
} Rc8 {[%emt 0:0:2]} 139. h4 {[%emt 0:0:4]} Rc1 {[%emt 0:0:3]} 140. hxg5 {[%emt 0:0:3]} d2 {[%emt 0:0:2]} 141. Rf1 {[%emt 0:0:7]} Ba6 {[%emt 0:0:0]} 142. Rh1 {[%emt 0:0:17]} Be2 {[%emt 0:0:3]} 143. Bxe2 {[%emt 0:0:3]} Rxh1 {[%emt 0:0:4]} 144. f4 {[%emt 0:0:3]} exf4+ {[%emt 0:0:4]} 145. Kxf4 {[%emt 0:0:3]} d1=Q {[%emt 0:0:3]} 146. Bxd1 {[%emt 0:0:3]} Rxd1 {[%emt 0:0:2]
} 147. Kf5 {[%emt 0:0:3]} Rg1 {[%emt 0:0:3]} 148. Kg6 {[%emt 0:0:3]
} Rxg4 {[%emt 0:0:4]} 149. Kxg7 {[%emt 0:0:3]} Rxg5+ {[%emt 0:0:2]
} 150. Kf6 {[%emt 0:0:2]} Rg2 {[%emt 0:0:3]} 151. Ke6 {[%emt 0:0:3]
} Rxb2 {[%emt 0:0:2]} 152. Kxd6 {[%emt 0:0:3]} Ra2 {[%emt 0:0:0]} 0-1